Workbook

Sheet 05.09
A2: МБОУ "СОШ №33" НМР РТ | D2: Отд./корп | E2: 1 неделя | H2: День | I2: 2022-09-05
A4: Раздел | B4: № рец. | C4: Блюдо | D4: Выход, г | E4: Цена | F4: Ккал | G4: Белки | H4: Жиры | I4: Угл-ды
A5: Завтрак
C6: Йогурт сливочный в индивидуальн.упаковке 2,5% | D6: 150 | F6: 117.15 | G6: 4.8 | H6: 3.75 | I6: 16.05
A7: 2 блюдо | B7: 175 | C7: Каша "Дружба" молочная с маслом сливочным | D7: 180/5 | F7: 206.21 | G7: 5.90 | H7: 10.14 | I7: 20.34
A8: гор.напиток | C8: Фруктовый чай | D8: 200 | F8: 32.72 | G8: 0.22 | H8: 0.00 | I8: 8.05
A9: хлеб | B9: 134 | C9: Батон нарезной | D9: 50 | F9: 131.00 | G9: 3.75 | H9: 1.45 | I9: 25.70
D10: 585 | F10: =F6+F7+F8+F9 -> 487.08 | G10: =G6+G7+G8+G9 -> 14.67 | H10: 15.34 | I10: 70.14
A11: Обед
B12: 1 | C12: Бутерброд с маслом сливочным 30/10 | D12: 40 | F12: 136 | G12: 2.36 | H12: 7.49 | I12: 14.89
A13: 1 блюдо | B13: 88 | C13: Щи из свежей капусты с картофелем | D13: 200 | F13: 71.80 | G13: 1.41 | H13: 3.96 | I13: 6.32
A14: 2 блюдо | C14: Сосиски отварные | D14: 100/2 шт. | F14: 201.12 | G14: 10.80 | H14: 13.84 | I14: 0.36
A15: гарнир | B15: 202 | C15: Макароны отварные с маслом сливочным | D15: 150/3 | F15: 175.76 | G15: 5.69 | H15: 2.80 | I15: 31.91
A16: гор.напиток | B16: 310 | C16: Напиток из шиповника растворимого | D16: 200 | F16: 108.20 | G16: 0.68 | H16: 0.28 | I16: 20.76
A17: хлеб | C17: Хлеб дарницкий | D17: 30 | F17: 59.28 | G17: 1.98 | H17: 0.36 | I17: 11.86
D18: 723
C20: бесп питание младшие + допол. питание | D20: =D10+D18 -> 1308 | E20: 103.45 | F20: =F11+F12+F13+F14+F15+F16+F17 -> 752.16 | G20: =G11+G12+G13+G14+G15+G16+G17 -> 22.92 | H20: 28.73 | I20: 86.10
F21: =F10+F20 -> 1239.24 | G21: =G10+G20 -> 37.59 | H21: 44.07 | I21: 156.24
A22: Горячий завтрак (младшие)
B23: 14 | C23: Масло сливочное порциями | D23: 10 | F23: 66.00 | G23: 0.08 | H23: 7.25 | I23: 0.13
A24: 2 блюдо | C24: Сосиски отварные | D24: 100/2 шт. | F24: 201.12 | G24: 10.80 | H24: 13.84 | I24: 0.36
A25: гарнир | B25: 203 | C25: Макароны отварные (спагетти) с маслом сливоч. | D25: 150/3 | F25: 176.10 | G25: 5.68 | H25: 2.88 | I25: 31.96
A26: гор.напиток | B26: 376 | C26: Чай с сахаром с яблоком | D26: 200 | F26: 36.68 | G26: 0.11 | H26: 0.06 | I26: 8.97
A27: хлеб | C27: Хлеб ржаной/пшеничный | D27: 20/30 | F27: 107.60 | G27: 3.60 | H27: 0.48 | I27: 22.68
C29: бесплатное питание младшие | D29: 523 | E29: 68.45 | F29: =F23+F24+F25+F26+F27+F28 -> 587.50 | G29: =G23+G24+G25+G26+G27+G28 -> 20.27 | H29: =H23+H24+H25+H26+H27+H28 -> 24.51 | I29: =I23+I24+I25+I26+I27+I28 -> 64.10
A31: Раздел | B31: № рец. | C31: Блюдо | D31: Выход, г | E31: Цена | F31: Ккал | G31: Белки | H31: Жиры | I31: Угл-ды
A32: Старшие
B33: 14 | C33: Масло сливочное порциями | D33: 10 | F33: 66.00 | G33: 0.08 | H33: 7.25 | I33: 0.13
A34: 2 блюдо | C34: Сосиски отварные | D34: 100/2 шт. | F34: 201.12 | G34: 10.80 | H34: 13.84 | I34: 0.36
A35: гарнир | B35: 203 | C35: Макароны отварные (спагетти) с маслом сливоч. | D35: 180/5 | F35: 206.96 | G35: 6.83 | H35: 2.93 | I35: 38.29
A36: гор.напиток | B36: 376 | C36: Чай с сахаром с яблоком | D36: 200 | F36: 36.68 | G36: 0.11 | H36: 0.06 | I36: 8.97
A37: хлеб | C37: Хлеб ржаной/пшеничный | D37: 30/25 | F37: 120.50 | G37: 3.93 | H37: 0.54 | I37: 24.66
C39: питание старшие | D39: 550 | E39: 78.00 | F39: =F33+F34+F35+F36+F37 -> 631.26 | G39: =G33+G34+G35+G36+G37 -> 21.75 | H39: 24.62 | I39: 72.41

Sheet 06.09
A2: МБОУ "СОШ №33" НМР РТ | D2: Отд./корп | E2: 1 неделя | H2: День | I2: 2022-09-06
A4: Раздел | B4: № рец. | C4: Блюдо | D4: Выход, г | E4: Цена | F4: Ккал | G4: Белки | H4: Жиры | I4: Угл-ды
A5: Завтрак
B6: 209 | C6: Яйцо отварное | D6: 40 | F6: 63.00 | G6: 5.08 | H6: 4.60 | I6: 0.28
B7: 14 | C7: Масло сливочное порциями | D7: 10 | F7: 66.00 | G7: 0.08 | H7: 7.25 | I7: 0.13
A8: 2 блюдо | B8: 181 | C8: Каша манная молочная | D8: 200 | F8: 185.00 | G8: 6.03 | H8: 3.47 | I8: 32.85
A9: гор.напиток | B9: 379 | C9: Кофейный напиток с молоком | D9: 200 | F9: 100.60 | G9: 3.17 | H9: 2.68 | I9: 15.95
A10: хлеб | B10: 134 | C10: Батон нарезной | D10: 60 | F10: 156.89 | G10: 4.49 | H10: 1.74 | I10: 30.78
D11: =SUM(D6:D10) -> 510 | F11: =F6+F7+F8+F9+F10 -> 571.49 | G11: =G6+G7+G8+G9+G10 -> 18.85 | H11: =H6+H7+H8+H9+H10 -> 19.74 | I11: =I6+I7+I8+I9+I10 -> 79.99
A12: Обед
B13: 15 | C13: Сыр | D13: 15 | F13: 51.50 | G13: 3.95 | H13: 3.99 | I13: 0.00
A14: 1 блюдо | B14: 96 | C14: Рассольник ленинградский | D14: 200 | F14: 85.80 | G14: 4.11 | H14: 5.07 | I14: 9.51
A15: 2 блюдо | B15: 394 | C15: Котлеты "Здоровье" | D15: 90 | F15: 175.63 | G15: 8.25 | H15: 8.54 | I15: 14.82
A16: гарнир | B16: 303 | C16: Каша гречневая вязкая | D16: 150 | F16: 153.72 | G16: 4.56 | H16: 4.55 | I16: 26.35
A17: напиток | B17: 344 | C17: Компот из свежих яблок | D17: 200 | F17: 114.60 | G17: 0.16 | H17: 0.16 | I17: 27.88
A18: хлеб | C18: Хлеб дарницкий | D18: 45 | F18: 88.92 | G18: 2.96 | H18: 0.54 | I18: 17.78
D19: 700
C21: бесп питание младшие + допол. питание | D21: =D11+D19 -> 1210 | E21: 103.45 | F21: =F12+F13+F14+F15+F16+F17+F18 -> 670.17 | G21: =G12+G13+G14+G15+G16+G17+G18 -> 23.99 | H21: =H12+H13+H14+H15+H16+H17+H18 -> 22.85 | I21: =I12+I13+I14+I15+I16+I17+I18 -> 96.34
F22: =F11+F21 -> 1241.66 | G22: =G11+G21 -> 42.84 | H22: =H11+H21 -> 42.59 | I22: =I11+I21 -> 176.33
A23: Горячий завтрак (младшие)
B24: 15 | C24: Сыр (порционно) | D24: 10 | F24: 34.33 | G24: 2.63 | H24: 2.66 | I24: 0.00
A25: 2 блюдо | B25: 394 | C25: Котлеты "Здоровье" | D25: 90 | F25: 170.63 | G25: 10.25 | H25: 7.24 | I25: 5.82
A26: гарнир | C26: Овощное рагу | D26: 150 | F26: 115.50 | G26: 3.06 | H26: 5.52 | I26: 19.84
A27: напиток | B27: 379 | C27: Кофейный напиток с молоком | D27: 200 | F27: 60.10 | G27: 3.17 | H27: 2.68 | I27: 9.98
A28: хлеб | C28: Хлеб ржаной/пшеничный | D28: 20/30 | F28: 107.60 | G28: 3.60 | H28: 0.48 | I28: 22.68
C30: бесплатное питание младшие | D30: 500 | E30: 68.45 | F30: =F24+F25+F26+F27+F28+F29 -> 488.16 | G30: =G24+G25+G26+G27+G28+G29 -> 22.71 | H30: =H24+H25+H26+H27+H28+H29 -> 18.58 | I30: =I24+I25+I26+I27+I28+I29 -> 58.32
A32: Раздел | B32: № рец. | C32: Блюдо | D32: Выход, г | E32: Цена | F32: Ккал | G32: Белки | H32: Жиры | I32: Угл-ды
A33: Старшие
B34: 3 | C34: Бутерброд с сыром (30/15/5) | D34: 50 | F34: 155.00 | G34: 6.27 | H34: 7.03 | I34: 14.83
A35: 2 блюдо | B35: 394 | C35: Котлеты "Здоровье" | D35: 100 | F35: 189.58 | G35: 12.50 | H35: 8.04 | I35: 6.46
A36: гарнир | C36: Овощное рагу | D36: 180 | F36: 203.34 | G36: 3.09 | H36: 13.41 | I36: 16.76
A37: напиток | B37: 699 | C37: Напиток из лимона | D37: 200 | F37: 33.37 | G37: 0.14 | H37: 0.02 | I37: 7.46
A38: хлеб | C38: Хлеб ржаной | D38: 30 | F38: 59.28 | G38: 1.97 | H38: 0.36 | I38: 11.92
C40: питание старшие | D40: 560 | E40: 78.00 | F40: =SUM(F34:F38) -> 640.57 | G40: =SUM(G34:G38) -> 23.97 | H40: 28.86 | I40: 57.43

Sheet 07.09
A2: МБОУ "СОШ №33" НМР РТ | D2: Отд./корп | E2: 1 неделя | H2: День | I2: 2022-09-07
A4: Раздел | B4: № рец. | C4: Блюдо | D4: Выход, г | E4: Цена | F4: Ккал | G4: Белки | H4: Жиры | I4: Угл-ды
A5: Завтрак
A6: фрукты | B6: 338 | C6: Фрукты (яблоки)
A7: 2 блюдо | B7: 223 | C7: Запеканка творожная с молоком сгущенным
A8: гор.напиток | B8: 376 | C8: Чай с сахаром
A9: хлеб | B9: 134 | C9: Батон нарезной
D11: 0 | F11: =F6+F7+F8+F9+F10 -> 0.00 | G11: =G6+G7+G8+G9+G10 -> 0.00 | H11: =H6+H7+H8+H9+H10 -> 0.00 | I11: =I6+I7+I8+I9+I10 -> 0.00
A12: Обед
A13: хол.закуска | C13: Икра баклажанная
A14: 1 блюдо | B14: 300 | C14: Суп - лапша домашняя с картофелем
A15: 2 блюдо | B15: 291 | C15: Плов из куриных грудок
A16: напиток | C16: Напиток лимонный
A17: хлеб | C17: Хлеб пшеничный/дарницкий
D19: 0
C21: бесп питание младшие + допол. питание | D21: =D11+D19 -> 0 | E21: 103.45 | F21: =F12+F13+F14+F15+F16+F17+F18 -> 0.00 | G21: =G12+G13+G14+G15+G16+G17+G18 -> 0.00 | H21: =H12+H13+H14+H15+H16+H17+H18 -> 0.00 | I21: =I12+I13+I14+I15+I16+I17+I18 -> 0.00
F22: =F11+F21 -> 0.00 | G22: =G11+G21 -> 0.00 | H22: =H11+H21 -> 0.00 | I22: =I11+I21 -> 0.00
A23: Горячий завтрак (младшие)
A24: доп.гарнир | B24: 71 | C24: Огурцы св. | D24: 30 | F24: 3.60 | G24: 0.21 | H24: 0.03 | I24: 0.57
A25: 2 блюдо | B25: 291 | C25: Плов из куриных грудок | D25: 50/150 | F25: 363.62 | G25: 9.58 | H25: 13.54 | I25: 41.38
A26: гор.напиток | B26: 376 | C26: Чай с сахаром | D26: 200 | F26: 40.00 | G26: 0.07 | H26: 0.02 | I26: 10.00
A27: хлеб | C27: Хлеб пшеничный/ржаной | D27: 30/40 | F27: 204.65 | G27: 6.74 | H27: 1.05 | I27: 41.49
C29: бесплатное питание младшие | D29: 500 | E29: 68.45 | F29: =SUM(F24:F27) -> 611.87 | G29: =SUM(G24:G27) -> 16.60 | H29: 14.64 | I29: 93.44
A31: Раздел | B31: № рец. | C31: Блюдо | D31: Выход, г | E31: Цена | F31: Ккал | G31: Белки | H31: Жиры | I31: Угл-ды
A32: Старшие
A33: хлеб | C33: Печенье | D33: 30 | F33: 125.10 | G33: 2.25 | H33: 2.94 | I33: 22.32
A34: доп.гарнир | B34: 71 | C34: Огурцы св. | D34: 30 | F34: 3.60 | G34: 0.21 | H34: 0.03 | I34: 0.57
A35: 2 блюдо | B35: 291 | C35: Плов из куриных грудок | D35: 250 | F35: 419.54 | G35: 20.42 | H35: 15.69 | I35: 49.96
A36: гор.напиток | B36: 376 | C36: Чай с сахаром | D36: 200 | F36: 40.00 | G36: 0.07 | H36: 0.02 | I36: 10.00
A37: хлеб | B37: 2012 | C37: Хлеб ржаной/пшеничный | D37: 20/30 | F37: 107.60 | G37: 3.60 | H37: 0.48 | I37: 22.68
C39: питание старшие | D39: 560 | E39: 78.00 | F39: =SUM(F33:F37) -> 695.84 | G39: =SUM(G33:G37) -> 26.55 | H39: 19.16 | I39: 105.53

Sheet 08.09
A2: МБОУ "СОШ №33" НМР РТ | D2: Отд./корп | E2: 1 неделя | H2: День | I2: 2022-09-08
A4: Раздел | B4: № рец. | C4: Блюдо | D4: Выход, г | E4: Цена | F4: Ккал | G4: Белки | H4: Жиры | I4: Угл-ды
A5: Завтрак
A6: фрукты | B6: 338 | C6: Фрукты (яблоки)
A7: 2 блюдо | B7: 174 | C7: Каша кукурузная молочная с маслом слив.
A8: гор.напиток | B8: 382 | C8: Какао с молоком
A9: хлеб | B9: 134 | C9: Батон нарезной
D11: 0 | F11: =SUM(F6:F10) -> 0.00 | G11: =SUM(G6:G10) -> 0.00 | H11: 0.00 | I11: 0.00
A12: Обед
B13: 15 | C13: Сыр порционно
A14: 1 блюдо | B14: 84 | C14: Борщ Сибирский со сметаной
A15: 2 блюдо | B15: 120 | C15: Котлеты "Аппетитные" мясо-куриные
A16: гарнир | B16: 128 | C16: Картофельное пюре с маслом
A17: напиток | B17: 348 | C17: Компот из изюма
A18: хлеб | C18: Хлеб пшеничный
D19: 0
C21: бесп питание младшие + допол. питание | D21: =D11+D19 -> 0 | E21: 103.45 | F21: =F12+F13+F14+F15+F16+F17+F18 -> 0.00 | G21: =G12+G13+G14+G15+G16+G17+G18 -> 0.00 | H21: =H12+H13+H14+H15+H16+H17+H18 -> 0.00 | I21: =I12+I13+I14+I15+I16+I17+I18 -> 0.00
F22: =F11+F21 -> 0.00 | G22: =G11+G21 -> 0.00 | H22: =H11+H21 -> 0.00 | I22: =I11+I21 -> 0.00
A23: Горячий завтрак (младшие)
A24: фрукты | B24: 338 | C24: Фрукты (яблоки) | D24: 100 | F24: 47.00 | G24: 0.40 | H24: 0.40 | I24: 9.80
A25: 2 блюдо | B25: 284 | C25: Запеканка картофельная с мясом 50/130 | D25: 180 | F25: 387.85 | G25: 17.74 | H25: 24.03 | I25: 28.30
A26: напиток | B26: 349 | C26: Напиток из сухофруктов | D26: 200 | F26: 132.80 | G26: 0.70 | H26: 0.10 | I26: 32.00
A27: хлеб | C27: Хлеб пшеничный | D27: 30 | F27: 71.00 | G27: 2.28 | H27: 0.24 | I27: 14.76
C29: бесплатное питание младшие | D29: 510 | E29: 68.45 | F29: =SUM(F24:F27) -> 638.65 | G29: =SUM(G24:G27) -> 21.12 | H29: 24.77 | I29: 84.86
A31: Раздел | B31: № рец. | C31: Блюдо | D31: Выход, г | E31: Цена | F31: Ккал | G31: Белки | H31: Жиры | I31: Угл-ды
A32: Старшие
A33: фрукты | B33: 338 | C33: Фрукты (яблоки) | D33: 100 | F33: 47.00 | G33: 0.40 | H33: 0.40 | I33: 9.80
A34: 2 блюдо | B34: 284 | C34: Запеканка картофельная с мясом с маслом слив. | D34: 240/10 | F34: 287.07 | G34: 10.53 | H34: 19.43 | I34: 22.33
A35: напиток | B35: 349 | C35: Напиток из сухофруктов | D35: 200 | F35: 132.80 | G35: 0.70 | H35: 0.10 | I35: 32.00
A36: хлеб | C36: Хлеб пшеничный/ржаной | D36: 40/30 | F36: 153.28 | G36: 5.01 | H36: 0.68 | I36: 31.60
C38: питание старшие | D38: 620 | E38: 78.00 | F38: =SUM(F33:F36) -> 620.15 | G38: =SUM(G33:G36) -> 16.64 | H38: 20.61 | I38: 95.73

Sheet 09.09
A2: МБОУ "СОШ №33" НМР РТ | D2: Отд./корп | E2: 1 неделя | H2: День | I2: 2022-09-09
A4: Раздел | B4: № рец. | C4: Блюдо | D4: Выход, г | E4: Цена | F4: Ккал | G4: Белки | H4: Жиры | I4: Углеводы
A5: Завтрак
B6: 209 | C6: Яйцо отварное | D6: 40 | F6: 63.00 | G6: 5.08 | H6: 4.60 | I6: 0.28
A7: 2 блюдо | B7: 173 | C7: Каша пшенная молочная с маслом сливочным | D7: 200 | F7: 210.00 | G7: 5.58 | H7: 8.68 | I7: 28.92
A8: гор.напиток | B8: 377 | C8: Чай с сахаром и лимоном | D8: 185/10/5 | F8: 42.00 | G8: 0.13 | H8: 0.02 | I8: 10.21
A9: хлеб | B9: 134 | C9: Батон нарезной | D9: 60 | F9: 156.89 | G9: 4.49 | H9: 1.74 | I9: 30.78
D11: 500 | F11: =F6+F7+F8+F9+F10 -> 471.89 | G11: =G6+G7+G8+G9+G10 -> 15.28 | H11: =H6+H7+H8+H9+H10 -> 15.04 | I11: =I6+I7+I8+I9+I10 -> 70.19
A12: Обед
C13: Бутерброд с сыром 30/15/5 | D13: 50 | F13: 155.00 | G13: 6.21 | H13: 7.86 | I13: 14.03
A14: 1 блюдо | B14: 119 | C14: Суп гороховый с гренками | D14: 200/10 | F14: 178.62 | G14: 6.49 | H14: 6.86 | I14: 20.36
A15: 2 блюдо | B15: 290 | C15: Птица тушеная в сметанно-томатном соусе | D15: 50/50 | F15: 155.00 | G15: 10.55 | H15: 11.66 | I15: 5.91
A16: гарнир | B16: 202 | C16: Спагетти отварные | D16: 150 | F16: 156.00 | G16: 3.80 | H16: 0.63 | I16: 32.50
A17: напиток | B17: 344 | C17: Компот из свежих яблок | D17: 200 | F17: 114.60 | G17: 0.16 | H17: 0.16 | I17: 27.88
A18: хлеб | C18: Хлеб дарницкий | D18: 30 | F18: 59.28 | G18: 1.98 | H18: 0.36 | I18: 11.86
D19: 800
C21: бесп питание младшие + допол. питание | D21: =D11+D19 -> 1300 | E21: 103.45 | F21: =F12+F13+F14+F15+F16+F17+F18 -> 818.50 | G21: =G12+G13+G14+G15+G16+G17+G18 -> 29.19 | H21: =H12+H13+H14+H15+H16+H17+H18 -> 27.53 | I21: =I12+I13+I14+I15+I16+I17+I18 -> 112.54
F22: =F11+F21 -> 1290.39 | G22: =G11+G21 -> 44.47 | H22: =H11+H21 -> 42.57 | I22: =I11+I21 -> 182.73
A23: Горячий завтрак (младшие)
A24: фрукты | B24: 338 | C24: Фрукты (яблоки) | D24: 100 | F24: 47.00 | G24: 0.40 | H24: 0.40 | I24: 9.80
A25: 2 блюдо | B25: 233 | C25: Запеканка из творога со сгущенным молоком | D25: 150/20 | F25: 419.82 | G25: 17.81 | H25: 19.82 | I25: 30.68
A26: гор.напиток | B26: 377 | C26: Чай с сахаром и лимоном | D26: 187/8/5 | F26: 34.02 | G26: 0.13 | H26: 0.02 | I26: 8.20
A27: хлеб | C27: Хлеб пшеничный | D27: 30 | F27: 71.00 | G27: 2.28 | H27: 0.24 | I27: 14.76
C29: бесплатное питание младшие | D29: 500 | E29: 68.45 | F29: =SUM(F24:F27) -> 571.84 | G29: =SUM(G24:G27) -> 20.62 | H29: 20.48 | I29: 63.44
A31: Раздел | B31: № рец. | C31: Блюдо | D31: Выход, г | E31: Цена | F31: Ккал | G31: Белки | H31: Жиры | I31: Углеводы
A32: Старшие
A33: 1 блюдо | B33: 119 | C33: Суп гороховый с гренками | D33: 250/10 | F33: 394.25 | G33: 10.62 | H33: 7.83 | I33: 23.60
A34: 2 блюдо | B34: 233 | C34: Запеканка из творога со сгущенным молоком | D34: 170/30 | F34: 343.80 | G34: 11.93 | H34: 16.24 | I34: 45.06
A35: гор.напиток | B35: 377 | C35: Чай с сахаром и лимоном | D35: 187/8/5 | F35: 34.02 | G35: 0.13 | H35: 0.02 | I35: 8.20
A36: хлеб | C36: Хлеб ржаной | D36: 40 | F36: 133.65 | G36: 4.46 | H36: 0.81 | I36: 26.73
C38: питание старшие | D38: 700 | E38: 78.00 | F38: =SUM(F33:F36) -> 905.72 | G38: =SUM(G33:G36) -> 27.14 | H38: 24.90 | I38: 103.59

Sheet 10.09
A2: МБОУ "СОШ №33" НМР РТ | D2: Отд./корп | E2: 1 неделя | H2: День | I2: 2022-09-10
A4: Раздел | B4: № рец. | C4: Блюдо | D4: Выход, г | E4: Цена | F4: Ккал | G4: Белки | H4: Жиры | I4: Угл-ды
A5: Старшие
A6: фрукты | B6: 338 | C6: Фрукты (яблоки) | D6: 100 | F6: 47.00 | G6: 0.40 | H6: 0.40 | I6: 9.80
A7: 2 блюдо | B7: 279 | C7: Тефтели куриные с рисом паровые с маслом слив. | D7: 100/5 | F7: 220.29 | G7: 13.71 | H7: 15.39 | I7: 9.94
A8: гарнир | B8: 303 | C8: Каша пшеничная вязкая на воде с маслом слив. | D8: 180/3 | F8: 202.49 | G8: 4.82 | H8: 7.26 | I8: 29.48
A9: напиток | C9: Напиток из замороженных ягод | D9: 200 | F9: 89.00 | G9: 0.20 | H9: 0.12 | I9: 21.45
A10: хлеб | C10: Хлеб пшеничный/ржаной | D10: 20/20 | F10: 83.60 | G10: 2.64 | H10: 0.40 | I10: 17.76
C12: питание старшие | D12: 628 | E12: 78.00 | F12: =SUM(F6:F10) -> 642.38 | G12: =SUM(G6:G10) -> 21.77 | H12: 23.57 | I12: 88.43
